bitfinex-derivatives/quotes_BNBF0:USTF0_20250507
["timestamp","ask_amount","ask_price","bid_price","bid_amount"]
[1746614204051,0.99822851,604.8,603.9,0.99818065]
[1746614204852,0.99822851,604.79,603.9,0.99818065]
[1746614205052,0.99822851,604.78,603.9,0.99818065]
[1746614205552,0.99822851,604.77,603.9,0.99818065]
[1746614205952,0.99822851,604.76,603.9,0.99818065]
[1746614206454,0.99822851,604.75,603.9,0.99818065]
[1746614207154,0.99822851,604.74,603.9,0.99818065]
[1746614207651,0.99822851,604.73,603.9,0.99818065]
[1746614207955,0.99822851,604.72,603.9,0.99818065]
[1746614208354,0.99822851,604.71,603.9,0.99818065]
[1746614208755,0.99822851,604.7,603.9,0.99818065]
[1746614209055,0.99822851,604.69,603.9,0.99818065]
[1746614209657,0.99822851,604.68,603.9,0.99818065]
[1746614210058,0.28793169,604.85,603.9,0.99818065]
[1746614210059,0.99822851,604.67,603.9,0.99818065]
[1746614211356,0.99822851,604.66,603.9,0.99818065]
[1746614211655,0.99822851,604.65,603.9,0.99818065]
[1746614212860,0.99822851,604.64,603.9,0.99818065]
[1746614213055,0.99822851,604.63,603.9,0.99818065]
[1746614213460,0.99822851,604.62,603.9,0.99818065]
[1746614214057,0.99822851,604.61,603.9,0.99818065]
[1746614214965,0.99822851,604.6,603.9,0.99818065]
[1746614215863,0.99822851,604.59,603.9,0.99818065]
[1746614216464,0.99822851,604.58,603.9,0.99818065]
[1746614217165,0.99822851,604.57,603.9,0.99818065]
[1746614217664,0.99822851,604.56,603.9,0.99818065]
[1746614218361,0.99822851,604.55,603.9,0.99818065]
[1746614218959,0.99822851,604.54,603.9,0.99818065]
[1746614219667,0.99822851,604.53,603.9,0.99818065]
[1746614220467,0.99822851,604.52,603.9,0.99818065]
[1746614220965,0.99822851,604.51,603.9,0.99818065]
[1746614221360,0.99822851,604.5,603.9,0.99818065]
[1746614221966,0.99822851,604.49,603.9,0.99818065]
[1746614222563,0.99822851,604.48,603.9,0.99818065]
[1746614223169,0.99822851,604.47,603.9,0.99818065]
[1746614223463,0.99822851,604.46,603.9,0.99818065]
[1746614224164,0.99822851,604.45,603.9,0.99818065]
[1746614224372,0.99822851,604.44,603.9,0.99818065]
[1746614224968,0.99822851,604.43,603.9,0.99818065]
[1746614225269,0.99822851,604.42,603.9,0.99818065]
[1746614226065,0.99822851,604.41,603.9,0.99818065]
[1746614226865,0.99822851,604.4,603.9,0.99818065]
[1746614227669,0.99822851,604.39,603.9,0.99818065]
[1746614228070,0.99822851,604.38,603.9,0.99818065]
[1746614228969,0.99822851,604.37,603.9,0.99818065]
[1746614229469,0.99822851,604.36,603.9,0.99818065]
[1746614229770,0.99822851,604.35,603.9,0.33118065]
[1746614230169,0.99822851,604.34,603.9,0.33118065]
[1746614230771,0.99822851,604.33,603.9,0.33118065]
[1746614231271,0.99822851,604.32,603.9,0.33118065]
[1746614232073,0.99822851,604.31,603.9,0.33118065]
[1746614232374,0.99822851,604.3,603.9,0.33118065]
[1746614233169,0.99822851,604.29,603.9,0.33118065]
[1746614233674,0.99822851,604.28,603.9,0.33118065]
[1746614234275,0.99822851,604.27,603.9,0.33118065]
[1746614235272,0.99822851,604.26,603.9,0.33118065]
[1746614235576,0.99822851,604.25,603.9,0.33118065]
[1746614236476,0.99822851,604.24,603.9,0.33118065]
[1746614237078,0.99822851,604.23,603.9,0.33118065]
[1746614237277,0.99822851,604.22,603.9,0.33118065]
[1746614237973,0.99822851,604.21,603.9,0.33118065]
[1746614238375,0.99822851,604.2,603.9,0.33118065]
[1746614238880,0.99822851,604.19,603.9,0.33118065]
[1746614239478,0.99822851,604.18,603.9,0.33118065]
[1746614239979,0.99822851,604.17,603.9,0.33118065]
[1746614240274,0.99822851,604.16,603.9,0.33118065]
[1746614241180,0.28799841,604.83,603.9,0.33118065]
[1746614241181,0.99822851,604.15,603.9,0.33118065]
[1746614241580,0.28799841,604.83,603.9,0.33118065]
[1746614242080,0.30409125,604.82,603.9,0.33118065]
[1746614242382,1.30507299,604.82,603.9,0.33118065]
[1746614242579,1.00098174,604.81,603.9,0.33118065]
[1746614242777,1.30507299,604.81,603.9,0.33118065]
[1746614242975,0.30409125,604.8,603.9,0.33118065]
[1746614243180,1.00098174,604.79,603.9,0.33118065]
[1746614243577,1.00098174,604.78,603.9,0.33118065]
[1746614243777,1.30507299,604.78,603.9,0.33118065]
[1746614243985,1.00098174,604.77,603.9,0.33118065]
[1746614244779,1.00098174,604.76,603.9,0.33118065]
[1746614245182,1.00098174,604.75,603.9,0.33118065]
[1746614245383,0.30409123,604.74,603.9,0.33118065]
[1746614245583,1.00098174,604.73,603.9,0.33118065]
[1746614246180,1.30507297,604.72,603.9,0.33118065]
[1746614246687,0.30409247,604.71,603.9,0.33118065]
[1746614246881,1.30507421,604.71,603.9,0.33118065]
[1746614247086,1.00098174,604.7,603.9,0.33118065]
[1746614247288,0.30409247,604.69,603.9,0.33118065]
[1746614247483,1.00098174,604.68,603.9,0.33118065]
[1746614247883,1.00098174,604.67,603.9,0.33118065]
[1746614248085,1.00098174,604.66,603.9,0.91118065]
[1746614248391,1.00098174,604.65,603.9,0.91118065]
[1746614249086,1.00098174,604.64,603.9,0.91118065]
[1746614249588,1.00098174,604.63,603.9,0.91118065]
[1746614249883,1.00098174,604.62,603.9,0.91118065]
[1746614251089,1.00098174,604.61,603.9,0.91118065]
[1746614251591,1.00098174,604.6,603.9,0.91118065]
[1746614252384,1.00098174,604.59,603.9,0.91118065]
[1746614253089,1.00098174,604.58,603.9,0.91118065]
[1746614253790,1.00098174,604.57,603.9,0.91118065]
[1746614254592,1.00098174,604.56,603.9,0.91118065]
[1746614255091,1.00098174,604.55,603.9,0.91118065]
[1746614255790,1.00098174,604.54,603.9,0.91118065]
[1746614256284,1.00098174,604.53,603.9,0.91118065]
[1746614256490,1.00098174,604.52,603.9,0.91118065]
[1746614257093,1.00098174,604.51,603.9,0.91118065]
[1746614258085,1.00098174,604.5,603.9,0.91118065]
[1746614258791,1.00098174,604.49,603.9,0.91118065]
[1746614259189,1.00098174,604.49,603.9,1.41018065]
[1746614259393,1.00098174,604.48,603.9,1.41018065]
[1746614259889,1.00098174,604.47,603.9,1.41018065]
[1746614260288,1.00098174,604.46,603.9,1.41018065]
[1746614260492,1.00098174,604.46,603.9,1.89818065]
[1746614260892,1.00098174,604.45,603.9,1.89818065]
[1746614261591,1.00098174,604.44,603.9,1.89818065]
[1746614261994,1.00098174,604.43,603.9,1.89818065]
[1746614262492,1.00098174,604.42,603.9,1.89818065]
[1746614263093,1.00098174,604.41,603.9,1.89818065]
[1746614263593,1.00098174,604.41,603.9,2.42618065]
[1746614263793,1.00098174,604.4,603.9,2.42618065]
[1746614264393,1.00098174,604.39,603.9,2.42618065]
[1746614264694,1.00098174,604.38,603.9,2.42618065]
[1746614265295,1.00098174,604.37,603.9,2.42618065]
[1746614265994,1.00098174,604.36,603.9,2.42618065]
[1746614266290,1.00098174,604.35,603.9,2.42618065]
[1746614266896,1.00098174,604.34,603.9,2.42618065]
[1746614267397,1.00098174,604.33,603.9,2.42618065]
[1746614268197,1.00098174,604.32,603.9,2.42618065]
[1746614272303,1.00098174,604.31,603.9,2.42618065]
[1746614272703,1.00098174,604.3,603.9,2.42618065]
[1746614272997,1.00098174,604.29,603.9,1.84618065]
[1746614273402,1.00098174,604.28,603.9,1.84618065]
[1746614273902,1.00098174,604.27,603.9,1.84618065]
[1746614274398,1.00098174,604.26,603.9,1.84618065]
[1746614274602,1.00098174,604.25,603.9,1.84618065]
[1746614275098,1.00098174,604.24,603.9,1.84618065]
[1746614275303,1.00098174,604.23,603.9,1.84618065]
[1746614276098,1.00098174,604.22,603.9,1.84618065]
[1746614276405,1.00098174,604.21,603.9,1.84618065]
[1746614276600,1.00098174,604.21,603.9,1.31818065]
[1746614277002,1.00098174,604.2,603.9,1.31818065]
[1746614277803,1.00098174,604.19,603.9,1.31818065]
[1746614278403,1.00098174,604.18,603.9,1.31818065]
[1746614278805,1.00098174,604.17,603.9,1.31818065]
[1746614279305,1.00098174,604.16,603.9,1.31818065]
[1746614279706,1.00098174,604.15,603.9,1.31818065]
[1746614280406,1.00098174,604.14,603.9,1.31818065]
[1746614280906,1.00098174,604.13,603.9,1.31818065]
[1746614281404,0.28800675,604.79,603.9,1.31818065]
[1746614281808,0.30410525,604.78,603.9,1.31818065]
[1746614282108,1.00056312,604.77,603.9,1.31818065]
[1746614282308,0.30410525,604.76,603.9,1.31818065]
[1746614282708,1.00056312,604.75,603.9,1.31818065]
[1746614283206,1.00056312,604.74,603.9,1.31818065]
[1746614283509,0.30414701,604.73,603.9,1.31818065]
[1746614283710,1.30471013,604.73,603.9,1.31818065]
[1746614284110,1.00056312,604.72,603.9,1.31818065]
[1746614284310,1.30471013,604.72,603.9,1.31818065]
[1746614284506,0.30414701,604.71,603.9,1.31818065]
[1746614284710,1.00056312,604.7,603.9,1.31818065]
[1746614285011,1.00056312,604.69,603.9,1.31818065]
[1746614285511,1.00056312,604.68,603.9,1.31818065]
[1746614286107,1.00056312,604.67,603.9,1.31818065]
[1746614286807,1.00056312,604.66,603.9,1.31818065]
[1746614287412,0.28800675,604.79,603.9,1.31818065]
[1746614287413,1.00056312,604.65,603.9,1.31818065]
[1746614287711,1.00056312,604.64,603.9,1.31818065]
[1746614288912,1.00056312,604.63,603.9,1.31818065]
[1746614289609,1.00056312,604.62,603.9,1.31818065]
[1746614289812,1.00056312,604.61,603.9,1.31818065]
[1746614290310,1.00056312,604.6,603.9,1.31818065]
[1746614291313,1.00056312,604.59,603.9,1.31818065]
[1746614292113,1.00056312,604.58,603.9,1.31818065]
[1746614292912,1.00056312,604.57,603.9,1.31818065]
[1746614293312,1.00056312,604.56,603.9,1.31818065]
[1746614293711,1.00056312,604.55,603.9,1.31818065]
[1746614294415,1.00056312,604.54,603.9,1.31818065]
[1746614294913,1.00056312,604.53,603.9,1.31818065]
[1746614295409,1.00056312,604.52,603.9,1.31818065]
[1746614296114,1.00056312,604.51,603.9,1.31818065]
[1746614296509,1.00056312,604.5,603.9,1.31818065]
[1746614297013,1.00056312,604.49,603.9,1.31818065]
[1746614297715,1.00056312,604.48,603.9,1.31818065]
[1746614298416,1.00056312,604.47,603.9,1.31818065]
[1746614298916,1.00056312,604.46,603.9,1.31818065]
[1746614299311,1.00056312,604.45,603.9,1.31818065]
[1746614300217,1.00056312,604.44,603.9,1.31818065]
[1746614300717,1.00056312,604.43,603.9,1.31818065]
[1746614301017,1.00056312,604.43,603.9,2.07518065]
[1746614301318,1.00056312,604.42,603.9,2.07518065]
[1746614302514,1.00056312,604.41,603.9,2.07518065]
[1746614303018,1.00056312,604.4,603.9,2.07518065]
[1746614303420,1.00056312,604.39,603.9,2.07518065]
[1746614304120,1.00056312,604.38,603.9,2.07518065]
[1746614304816,1.00056312,604.37,603.9,2.07518065]
[1746614305017,1.00056312,604.36,603.9,2.07518065]
[1746614305620,1.00056312,604.35,603.9,2.07518065]
[1746614305820,1.00056312,604.34,603.9,2.07518065]
[1746614306216,1.00056312,604.33,603.9,2.07518065]
[1746614306523,1.00056312,604.32,603.9,2.07518065]
[1746614306919,1.00056312,604.31,603.9,2.07518065]
[1746614307523,1.00056312,604.3,603.9,2.07518065]
[1746614308422,1.00056312,604.29,603.9,2.07518065]
[1746614308724,1.00056312,604.29,603.9,1.08818065]
[1746614309026,1.00056312,604.28,603.9,1.08818065]
[1746614309825,1.00056312,604.27,603.9,1.08818065]
[1746614310424,1.00056312,604.26,603.9,1.08818065]
[1746614311425,1.00056312,604.25,603.9,1.08818065]
[1746614311822,1.00056312,604.24,603.9,1.08818065]
[1746614312227,0.28798054,604.83,603.9,1.08818065]
[1746614312427,0.30407716,604.82,603.9,1.08818065]
[1746614312626,0.30407716,604.82,603.9,2.17518065]
[1746614312826,0.99773868,604.81,603.9,2.17518065]
[1746614313228,1.30181584,604.8,603.9,2.17518065]
[1746614313526,0.99773868,604.8,603.9,2.17518065]
[1746614313723,0.99773868,604.79,603.9,2.17518065]
[1746614314130,0.30407642,604.78,603.9,2.17518065]
[1746614314423,0.99773868,604.77,603.9,2.17518065]
[1746614315028,0.99773868,604.76,603.9,2.17518065]
[1746614315328,0.99773868,604.75,603.9,2.17518065]
[1746614315928,0.99773868,604.74,603.9,2.17518065]
[1746614316428,0.99773868,604.73,603.9,2.17518065]
[1746614316928,0.99773868,604.72,603.9,2.17518065]
[1746614317427,0.99773868,604.71,603.9,2.17518065]
[1746614317736,0.99773868,604.7,603.9,2.17518065]
[1746614318631,0.99773868,604.69,603.9,2.17518065]
[1746614319331,0.99773868,604.68,603.9,2.17518065]
[1746614319831,0.99773868,604.67,603.9,2.17518065]
[1746614320327,0.99773868,604.66,603.9,2.17518065]
[1746614320933,0.99773868,604.65,603.9,2.17518065]
[1746614321834,0.99773868,604.64,603.9,2.17518065]
[1746614322231,0.99773868,604.63,603.9,2.17518065]
[1746614322631,0.99773868,604.62,603.9,2.17518065]
[1746614322935,0.28793646,604.84,603.9,2.17518065]
[1746614322936,0.99773868,604.61,603.9,2.17518065]
[1746614323937,0.99773868,604.6,603.9,2.17518065]
[1746614324532,0.99773868,604.59,603.9,2.17518065]
[1746614324732,0.99773868,604.58,603.9,2.17518065]
[1746614325339,0.99773868,604.57,603.9,2.17518065]
[1746614325838,0.99773868,604.56,603.9,2.17518065]
[1746614326238,0.99773868,604.55,603.9,2.17518065]
[1746614326638,0.99773868,604.54,603.9,2.17518065]
[1746614327034,0.99773868,604.53,603.9,2.17518065]
[1746614327239,0.99773868,604.52,603.9,2.17518065]
[1746614327739,0.99773868,604.51,603.9,2.17518065]
[1746614328433,0.99773868,604.5,603.9,2.17518065]
[1746614328739,0.99773868,604.49,603.9,2.17518065]
[1746614329034,0.99773868,604.48,603.9,2.17518065]
[1746614329539,0.99773868,604.47,603.9,2.17518065]
[1746614330143,0.99773868,604.46,603.9,2.17518065]
[1746614330541,0.99773868,604.45,603.9,2.17518065]
[1746614330937,0.99773868,604.44,603.9,2.17518065]
[1746614332643,0.99773868,604.43,603.9,2.17518065]
[1746614333037,0.99773868,604.42,603.9,2.17518065]
[1746614333241,0.99773868,604.41,603.9,2.17518065]
[1746614333642,0.99773868,604.4,603.9,2.17518065]
[1746614334341,0.68688327,605.38,603.9,2.17518065]
[1746614334342,0.99773868,604.39,603.9,2.17518065]
[1746614334741,0.99773868,604.38,603.9,2.17518065]
[1746614335042,0.99773868,604.37,603.9,2.17518065]
[1746614335543,0.99773868,604.36,603.9,2.17518065]
[1746614335839,0.99773868,604.35,603.9,2.17518065]
[1746614336539,0.99773868,604.34,603.9,2.17518065]
[1746614337143,0.99773868,604.33,603.9,2.17518065]
[1746614337641,0.99773868,604.32,603.9,2.17518065]
[1746614338046,0.99773868,604.31,603.9,2.17518065]
[1746614338644,0.99773868,604.3,603.9,2.17518065]
[1746614339348,0.99773868,604.29,603.9,2.75618065]
[1746614339649,0.99773868,604.29,603.9,0.91218065]
[1746614339845,0.99773868,604.28,603.9,0.91218065]
[1746614340350,0.28797934,604.84,603.9,0.91218065]
[1746614340949,0.99729837,604.83,603.9,0.91218065]
[1746614341949,0.99729837,604.82,603.9,0.91218065]
[1746614342351,0.99729837,604.82,603.9,1.41818065]
[1746614342544,0.99729837,604.82,603.9,2.90718065]
[1746614342749,0.99729837,604.81,603.9,2.90718065]
[1746614343350,0.99729837,604.8,603.9,2.90718065]
[1746614343952,0.99729837,604.79,603.9,2.90718065]
[1746614344551,0.99729837,604.78,603.9,2.90718065]
[1746614344853,0.99729837,604.77,603.9,2.90718065]
[1746614345552,0.99729837,604.76,603.9,2.90718065]
[1746614346451,0.99729837,604.75,603.9,2.90718065]
[1746614346952,0.99729837,604.74,603.9,2.90718065]
[1746614347551,0.99729837,604.73,603.9,2.90718065]
[1746614347754,0.99729837,604.72,603.9,2.90718065]
[1746614348462,0.99729837,604.71,603.9,2.90718065]
[1746614349356,0.99729837,604.7,603.9,2.90718065]
[1746614349757,0.99729837,604.69,603.9,2.90718065]
[1746614350959,0.99729837,604.68,603.9,2.90718065]
[1746614351259,0.99729837,604.67,603.9,2.90718065]
[1746614351960,0.99729837,604.66,603.9,2.90718065]
[1746614352560,0.99729837,604.65,603.9,2.90718065]
[1746614353159,0.99729837,604.64,603.9,2.90718065]
[1746614353657,0.99729837,604.63,603.9,2.90718065]
[1746614354559,0.99729837,604.62,603.9,2.90718065]
[1746614355656,0.99729837,604.61,603.9,2.90718065]
[1746614356259,0.99729837,604.6,603.9,2.90718065]
[1746614356657,0.99729837,604.59,603.9,2.90718065]
[1746614357261,0.99729837,604.58,603.9,2.90718065]
[1746614358060,0.99729837,604.57,603.9,2.90718065]
[1746614358361,0.99729837,604.56,603.9,2.90718065]
[1746614358960,0.99729837,604.55,603.9,2.90718065]
[1746614359364,0.99729837,604.54,603.9,2.90718065]
[1746614359866,0.99729837,604.53,603.9,2.90718065]
[1746614360565,0.99729837,604.52,603.9,2.90718065]
[1746614361065,0.99729837,604.51,603.9,2.90718065]
[1746614361865,0.99729837,604.5,603.9,2.90718065]
[1746614362665,0.99729837,604.49,603.9,2.90718065]
[1746614363568,0.99729837,604.48,603.9,2.90718065]
[1746614363970,0.99729837,604.47,603.9,2.90718065]
[1746614364664,0.99729837,604.46,603.9,2.90718065]
[1746614365269,0.99729837,604.45,603.9,2.90718065]
[1746614365669,0.99729837,604.44,603.9,2.90718065]
[1746614366264,0.99729837,604.43,603.9,2.90718065]
[1746614366467,0.99729837,604.42,603.9,2.90718065]
[1746614367070,0.99729837,604.41,603.9,2.90718065]
[1746614367475,0.99729837,604.4,603.9,2.90718065]
[1746614367972,0.99729837,604.39,603.9,2.90718065]
[1746614368767,0.99729837,604.38,603.9,2.90718065]
[1746614369167,0.99729837,604.37,603.9,2.90718065]
[1746614369671,0.99729837,604.36,603.9,2.90718065]
[1746614370171,0.99729837,604.35,603.9,2.90718065]
[1746614370672,0.99729837,604.34,603.9,2.90718065]
[1746614370971,0.99729837,604.33,603.9,2.90718065]
[1746614371571,0.99729837,604.32,603.9,2.90718065]
[1746614371971,0.99729837,604.31,603.9,2.90718065]
[1746614373275,0.99729837,604.3,603.9,2.90718065]
[1746614373572,0.99729837,604.29,603.9,2.90718065]
[1746614373874,0.99729837,604.29,603.9,0.33118065]
[1746614374074,0.99729837,604.28,603.9,0.33118065]
[1746614374374,0.99729837,604.27,603.9,0.33118065]
[1746614374870,0.99729837,604.26,603.9,0.33118065]
[1746614375675,0.99729837,604.25,603.9,0.33118065]
[1746614376277,0.99729837,604.24,603.9,0.33118065]
[1746614376777,0.99729837,604.23,603.9,0.33118065]
[1746614377372,0.99729837,604.22,603.9,0.33118065]
[1746614377978,0.99729837,604.21,603.9,0.33118065]
[1746614378481,0.99729837,604.2,603.9,0.33118065]
[1746614379074,0.99729837,604.19,603.9,0.33118065]
[1746614379279,0.99729837,604.18,603.9,0.33118065]
[1746614379778,0.99729837,604.17,603.9,0.33118065]
[1746614380678,0.99729837,604.16,603.9,0.33118065]
[1746614381174,0.2879996,604.82,603.9,0.33118065]
[1746614381881,1.25508193,605.73,603.9,0.33118065]
[1746614382081,0.99939962,605.14,603.9,0.33118065]
[1746614382281,0.28788286,604.82,603.9,0.33118065]
[1746614382480,1.63400417,605.14,603.9,0.33118065]
[1746614382776,0.99939962,604.81,603.9,0.33118065]
[1746614383280,1.30350242,604.8,603.9,0.33118065]
[1746614383580,0.99939962,604.79,603.9,0.33118065]
[1746614384184,0.28792454,604.82,603.9,0.33118065]
[1746614384185,0.99939962,604.78,603.9,0.33118065]
[1746614385181,0.99939962,604.77,603.9,0.33118065]
[1746614385783,0.99939962,604.76,603.9,0.33118065]
[1746614386283,0.99939962,604.75,603.9,0.33118065]
[1746614386584,0.99939962,604.74,603.9,0.33118065]
[1746614386884,0.99939962,604.73,603.9,0.33118065]
[1746614387485,0.99939962,604.72,603.9,0.33118065]
[1746614388082,0.99939962,604.71,603.9,0.33118065]
[1746614388286,0.99939962,604.7,603.9,0.33118065]
[1746614388783,0.99939962,604.69,603.9,0.33118065]
[1746614389290,0.99939962,604.68,603.9,0.33118065]
[1746614389589,0.99939962,604.67,603.9,0.33118065]
[1746614389984,0.99939962,604.66,603.9,0.33118065]
[1746614390586,0.99939962,604.65,603.9,0.33118065]
[1746614391190,0.99939962,604.64,603.9,0.33118065]
[1746614392188,0.99939962,604.63,603.9,0.33118065]
[1746614392687,0.28795194,604.78,603.9,0.33118065]
[1746614393792,0.33050203,605.14,603.9,0.33118065]
[1746614394193,0.59199964,605.13,603.9,0.33118065]
[1746614394392,0.33051295,605.12,603.9,0.33118065]
[1746614394593,0.63463687,605.12,603.9,0.33118065]
[1746614394789,0.99962036,604.77,603.9,0.33118065]
[1746614395789,0.99962036,604.76,603.9,0.33118065]
[1746614396393,0.99962036,604.75,603.9,0.33118065]
[1746614396993,0.99962036,604.74,603.9,0.33118065]
[1746614397196,1.28758183,604.74,603.9,0.33118065]
[1746614397595,0.99962036,604.73,603.9,0.33118065]
[1746614398097,0.99962036,604.72,603.9,0.33118065]
[1746614398900,0.99962036,604.71,603.9,0.33118065]
[1746614399200,0.99962036,604.7,603.9,0.33118065]
[1746614399698,0.99962036,604.69,603.9,0.33118065]
[1746614400397,0.99962036,604.68,603.9,0.33118065]
[1746614400798,0.99962036,604.67,603.9,0.33118065]
[1746614401505,0.99962036,604.66,603.9,0.33118065]
[1746614401999,0.99962036,604.65,603.9,0.33118065]
[1746614402808,0.99962036,604.64,603.9,0.33118065]
[1746614403206,0.99962036,604.63,603.9,0.33118065]
[1746614403604,0.99962036,604.62,603.9,0.33118065]
[1746614403812,0.99962036,604.61,603.9,0.33118065]
[1746614404512,0.99962036,604.6,603.9,0.33118065]
[1746614404811,0.99962036,604.59,603.9,0.33118065]
[1746614405611,0.99962036,604.58,603.9,0.33118065]
[1746614405811,0.99962036,604.58,603.9,0.85818065]
[1746614406005,0.99962036,604.57,603.9,1.41618065]
[1746614406615,0.99962036,604.56,603.9,1.41618065]
[1746614407116,0.99962036,604.55,603.9,1.41618065]
[1746614407617,0.99962036,604.54,603.9,1.41618065]
[1746614408215,0.99962036,604.53,603.9,1.41618065]
[1746614408714,0.99962036,604.52,603.9,1.41618065]
[1746614409216,0.99962036,604.51,603.9,1.41618065]
[1746614409617,0.99962036,604.5,603.9,1.41618065]
[1746614409812,0.99962036,604.49,603.9,1.41618065]
[1746614410017,0.99962036,604.48,603.9,1.41618065]
[1746614410619,0.99962036,604.47,603.9,1.41618065]
[1746614410820,0.99962036,604.46,603.9,1.41618065]
[1746614411219,0.99962036,604.45,603.9,1.41618065]
[1746614411914,0.99962036,604.44,603.9,1.41618065]
[1746614412222,0.99962036,604.43,603.9,1.41618065]
[1746614412821,0.99962036,604.42,603.9,1.41618065]
[1746614413121,0.99962036,604.41,603.9,1.41618065]
[1746614413515,0.99962036,604.4,603.9,1.41618065]
[1746614413917,0.99962036,604.39,603.9,1.41618065]
[1746614414318,0.99962036,604.38,603.9,1.41618065]
[1746614414622,0.99962036,604.37,603.9,1.41618065]
[1746614415623,0.99962036,604.36,603.9,1.41618065]
[1746614415826,0.99962036,604.35,603.9,1.41618065]
[1746614416527,0.99962036,604.34,603.9,1.41618065]
[1746614416924,0.99962036,604.33,603.9,1.41618065]
[1746614417529,0.99962036,604.32,603.9,1.41618065]
[1746614417930,0.99962036,604.31,603.9,1.41618065]
[1746614418631,0.99962036,604.3,603.9,1.41618065]
[1746614419129,0.99962036,604.29,603.9,1.41618065]
[1746614419426,0.99962036,604.29,603.9,0.88918065]
[1746614419825,0.99962036,604.28,603.9,0.88918065]
[1746614420430,0.99962036,604.27,603.9,0.88918065]
[1746614421025,0.99962036,604.26,603.9,0.33118065]
[1746614421530,0.99962036,604.25,603.9,0.33118065]
[1746614421927,0.99962036,604.24,603.9,0.33118065]
[1746614422424,0.99962036,604.23,603.9,0.33118065]
[1746614422830,0.99962036,604.22,603.9,0.33118065]
[1746614423433,0.99962036,604.21,603.9,0.33118065]
[1746614424131,0.99962036,604.2,603.9,0.33118065]
[1746614424324,0.99962036,604.19,603.9,0.33118065]
[1746614424731,0.99962036,604.18,603.9,0.33118065]
[1746614425132,0.99962036,604.17,603.9,0.33118065]
[1746614425529,0.99962036,604.16,603.9,0.33118065]
[1746614425727,0.99962036,604.15,603.9,0.33118065]
[1746614426032,0.28799722,604.82,603.9,0.33118065]
[1746614426230,0.30409794,604.81,603.9,0.33118065]
[1746614426432,1.30454491,604.81,603.9,0.33118065]
[1746614426832,0.30409794,604.8,603.9,0.33118065]
[1746614427232,1.00044697,604.79,603.9,0.33118065]
[1746614427634,1.00044697,604.78,603.9,0.33118065]
[1746614428131,1.00044697,604.77,603.9,0.33118065]
[1746614428833,1.00044697,604.76,603.9,0.33118065]
[1746614429535,1.00044697,604.75,603.9,0.33118065]
[1746614430228,1.00044697,604.74,603.9,0.33118065]
[1746614431036,1.00044697,604.73,603.9,0.33118065]
[1746614431337,1.00044697,604.72,603.9,0.33118065]
[1746614431535,1.00044697,604.71,603.9,0.33118065]
[1746614432237,1.00044697,604.7,603.9,0.33118065]
[1746614433036,1.00044697,604.69,603.9,0.33118065]
[1746614433637,1.00044697,604.68,603.9,0.33118065]
[1746614434431,1.00044697,604.67,603.9,0.33118065]
[1746614434930,1.00044697,604.66,603.9,0.33118065]
[1746614435436,0.28793884,604.82,603.9,0.33118065]
[1746614435437,1.00044697,604.65,603.9,0.33118065]
[1746614435936,1.00044697,604.64,603.9,0.33118065]
[1746614436433,1.00044697,604.63,603.9,0.33118065]
[1746614437331,1.00044697,604.62,603.9,0.33118065]
[1746614437732,1.00044697,604.61,603.9,0.33118065]
[1746614438232,1.00044697,604.6,603.9,0.33118065]
[1746614439036,1.00044697,604.59,603.9,0.33118065]
[1746614439736,1.00044697,604.58,603.9,0.33118065]
[1746614440337,1.00044697,604.57,603.9,0.33118065]
[1746614440935,1.00044697,604.56,603.9,0.33118065]
[1746614441338,1.00044697,604.55,603.9,0.33118065]
[1746614442139,0.28795075,604.82,603.9,0.33118065]
[1746614442140,1.00044697,604.54,603.9,0.33118065]
[1746614442535,1.00044697,604.53,603.9,0.33118065]
[1746614443341,1.00044697,604.52,603.9,0.33118065]
[1746614443641,1.00044697,604.51,603.9,0.33118065]
[1746614444236,1.00044697,604.5,603.9,0.33118065]
[1746614444542,1.00044697,604.49,603.9,0.33118065]
[1746614445238,0.33051295,605.12,603.9,0.33118065]
[1746614445239,1.00044697,604.48,603.9,0.33118065]
[1746614446139,1.00044697,604.47,603.9,0.33118065]
[1746614446340,1.00044697,604.46,603.9,0.33118065]
[1746614446540,1.00044697,604.45,603.9,0.33118065]
[1746614447446,1.00044697,604.44,603.9,0.33118065]
[1746614447946,1.00044697,604.43,603.9,0.33118065]
[1746614448647,1.00044697,604.42,603.9,0.33118065]
[1746614449048,1.00044697,604.41,603.9,0.33118065]
[1746614449449,1.00044697,604.4,603.9,0.33118065]
[1746614450051,1.00044697,604.39,603.9,0.33118065]
[1746614450745,1.00044697,604.38,603.9,0.33118065]
[1746614451651,1.00044697,604.37,603.9,0.33118065]
[1746614452050,1.00044697,604.36,603.9,0.33118065]
[1746614452550,1.00044697,604.35,603.9,0.33118065]
[1746614452749,1.00044697,604.34,603.9,0.33118065]
[1746614453452,1.00044697,604.33,603.9,0.33118065]
[1746614453753,1.00044697,604.33,603.9,0.84518065]
[1746614453953,1.00044697,604.32,603.9,0.84518065]
[1746614454662,1.00044697,604.31,603.9,0.84518065]
[1746614455152,1.00044697,604.3,603.9,0.84518065]
[1746614456855,1.00044697,604.29,603.9,0.84518065]
[1746614457457,1.00044697,604.28,603.9,0.84518065]
[1746614458352,1.00044697,604.27,603.9,0.84518065]
[1746614458855,1.00044697,604.26,603.9,0.84518065]
[1746614459155,1.00044697,604.25,603.9,0.84518065]